[Event "EYCC G10-ch 2024"]
[Site "Prague"]
[Date "2024.08.25"]
[Round "4.3"]
[White "Bhaumik, Mehr"]
[Black "Stoica, Melina-Theodora"]
[Result "0-1"]
[ECO "D02"]
[WhiteElo "1606"]
[BlackElo "1576"]
[Annotator "NA"]
[PlyCount "126"]
[EventDate "2024.08.19"]
[EventType "swiss"]
[EventCountry "CZE"]
[SourceTitle "playchess.com"]
[Source "ChessBase"]
[SourceQuality "1"]
[TimeControl "5400+30"]

1. d4 {[%emt 0:00:05]} Nf6 {[%emt 0:00:09]} 2. Nf3 {[%emt 0:00:11]} d5 {[%emt 0:03:34]} 3. Bf4 {[%emt 0:01:16]} e6 {[%emt 0:05:27]} 4. c4 {[%emt 0:01:28]} c6 {[%emt 0:03:57]} 5. Nc3 {[%emt 0:01:32]} Be7 {[%emt 0:00:50]} 6. e3 {[%emt 0:03:02]} O-O {[%emt 0:02:21]} 7. Qc2 {[%emt 0:02:30]} Nbd7 {[%emt 0:06:44]} 8. Bd3 {[%emt 0:05:31]} Re8 {[%emt 0:17:08]} 9. Ng5 {[%emt 0:08:16]} Nf8 {[%emt 0:17:39]} 10. Nf3 {[%emt 0:14:51]} Bd6 {[%emt 0:13:21]} 11. Bg5 {[%emt 0:01:10]} Be7 {[%emt 0:03:05]} 12. Ne5 {[%emt 0:04:11]} N6d7 {[%emt 0:01:51]} 13. Bf4 {[%emt 0:01:34]} Nxe5 {[%emt 0:04:21]} 14. Bxe5 {[%emt 0:00:11]} Bf6 {[%emt 0:02:59]} 15. Bxf6 {[%emt 0:00:52]} Qxf6 {[%emt 0:00:13]} 16. O-O {[%emt 0:00:22]} Bd7 {[%emt 0:00:32]} 17. Rac1 {[%emt 0:00:59]} Rac8 {[%emt 0:01:54]} 18. Qa4 {[%emt 0:00:51]} a6 {[%emt 0:04:03]} 19. Qb3 {[%emt 0:05:35]} b5 {[%emt 0:02:28]} 20. cxb5 {[%emt 0:01:01]} cxb5 {[%emt 0:00:23]} 21. a4 {[%emt 0:00:37]} bxa4 {[%emt 0:01:26]} 22. Nxa4 {[%emt 0:00:19]} Rb8 {[%emt 0:00:06]} 23. Qa3 {[%emt 0:01:10]} Qe7 {[%emt 0:03:17]} 24. Qxe7 {[%emt 0:05:01]} Rxe7 {[%emt 0:00:08]} 25. Rc7 {[%emt 0:02:26]} Ree8 {[%emt 0:00:34]} 26. Nc5 {[%emt 0:00:18]} Bb5 {[%emt 0:00:43]} 27. Bxb5 {[%emt 0:03:33]} Rxb5 {[%emt 0:01:06]} 28. b3 {[%emt 0:01:52]} a5 {[%emt 0:01:57]} 29. Ra7 {[%emt 0:01:07]} e5 {[%emt 0:01:28]} 30. g3 {[%emt 0:02:19]} exd4 {[%emt 0:00:32]} 31. exd4 {[%emt 0:00:15]} g6 {[%emt 0:00:24]} 32. Ra1 {[%emt 0:01:01]} Rb4 {[%emt 0:00:12]} 33. Ra4 {[%emt 0:01:39]} Re1+ {[%emt 0:00:22]} 34. Kg2 {[%emt 0:00:08]} Rxa4 {[%emt 0:00:05]} 35. bxa4 {[%emt 0:00:08]} Rd1 {[%emt 0:00:06]} 36. Ra8 {[%emt 0:01:04]} Kg7 {[%emt 0:00:06]} 37. Rxa5 {[%emt 0:02:01]} Rxd4 {[%emt 0:00:07]} 38. Ra8 {[%emt 0:02:34]} Rc4 {[%emt 0:01:13]} 39. Nb3 {[%emt 0:02:38]} d4 {[%emt 0:00:21]} 40. a5 {[%emt 0:02:22]} Ne6 {[%emt 0:00:50]} 41. Nd2 {[%emt 0:05:55]} Ra4 {[%emt 0:00:28]} 42. Kf3 {[%emt 0:05:37]} Ng5+ {[%emt 0:01:13]} 43. Ke2 {[%emt 0:02:48]} Ne6 {[%emt 0:00:21]} 44. Kd3 {[%emt 0:01:25]} Nc5+ {[%emt 0:01:27]} 45. Ke2 {[%emt 0:00:39]} Nb7 {[%emt 0:00:08]} 46. Nb3 {[%emt 0:01:37]} Nd6 {[%emt 0:00:35]} 47. a6 {[%emt 0:01:36]} Nb5 {[%emt 0:00:32]} 48. Kd3 {[%emt 0:02:20]} Nc7 {[%emt 0:00:31]} 49. Nc5 {[%emt 0:02:12]} Ra3+ {[%emt 0:00:15]} 50. Kxd4 {[%emt 0:00:13]} Nxa8 {[%emt 0:00:04]} 51. Kd5 {[%emt 0:01:01]} Nc7+ {[%emt 0:00:21]} 52. Kc6 {[%emt 0:00:10]} Nxa6 {[%emt 0:00:05]} 53. Nxa6 {[%emt 0:00:16]} Rxa6+ {[%emt 0:00:07]} 54. Kd5 {[%emt 0:00:06]} Ra2 {[%emt 0:00:10]} 55. f4 {[%emt 0:00:23]} Rxh2 {[%emt 0:00:07]} 56. Ke4 {[%emt 0:00:06]} Kf6 {[%emt 0:00:13]} 57. Kf3 {[%emt 0:00:12]} Kf5 {[%emt 0:00:16]} 58. g4+ {[%emt 0:00:08]} Ke6 {[%emt 0:00:03]} 59. Kg3 {[%emt 0:00:03]} Rc2 {[%emt 0:00:10]} 60. Kh4 {[%emt 0:00:33]} Rc3 {[%emt 0:00:10]} 61. Kg5 {[%emt 0:00:24]} f6+ {[%emt 0:00:14]} 62. Kh6 {[%emt 0:00:07]} Kf7 {[%emt 0:00:08]} 63. g5 {[%emt 0:00:29]} Rh3# {[%emt 0:00:26]} 0-1

[Event "EYCC G10-ch 2024"]
[Site "Prague"]
[Date "2024.08.25"]
[Round "4.4"]
[White "Paunescu, Aida"]
[Black "Wang, Yi Xuan"]
[Result "1/2-1/2"]
[ECO "D02"]
[WhiteElo "1603"]
[BlackElo "1734"]
[Annotator "NA"]
[PlyCount "73"]
[EventDate "2024.08.19"]
[EventType "swiss"]
[EventCountry "CZE"]
[SourceTitle "playchess.com"]
[Source "ChessBase"]
[SourceQuality "1"]
[TimeControl "5400+30"]

1. d4 {[%emt 0:00:06]} d5 {[%emt 0:00:15]} 2. Nf3 {[%emt 0:00:14]} Nf6 {[%emt 0:00:12]} 3. Bf4 {[%emt 0:00:18]} c5 {[%emt 0:00:47]} 4. e3 {[%emt 0:00:38]} Nc6 {[%emt 0:00:15]} 5. c3 {[%emt 0:01:00]} Qb6 {[%emt 0:01:33]} 6. Qb3 {[%emt 0:01:36]} c4 {[%emt 0:00:13]} 7. Qxb6 {[%emt 0:01:14]} axb6 {[%emt 0:00:10]} 8. Nbd2 {[%emt 0:01:44]} b5 {[%emt 0:00:15]} 9. a3 {[%emt 0:02:06]} b4 {[%emt 0:00:31]} 10. Be2 {[%emt 0:04:53]} bxc3 {[%emt 0:00:41]} 11. bxc3 {[%emt 0:00:51]} Bf5 {[%emt 0:01:34]} 12. O-O {[%emt 0:04:30]} e6 {[%emt 0:01:16]} 13. a4 {[%emt 0:03:07]} Be7 {[%emt 0:02:35]} 14. Ne5 {[%emt 0:17:01]} Na5 {[%emt 0:01:58]} 15. Ra2 {[%emt 0:03:57]} O-O {[%emt 0:01:01]} 16. Rfa1 {[%emt 0:05:06]} Ra6 {[%emt 0:02:42]} 17. h3 {[%emt 0:05:43]} h6 {[%emt 0:02:28]} 18. f3 {[%emt 0:08:52]} Rfa8 {[%emt 0:05:32]} 19. Rb2 {[%emt 0:02:30]} b6 {[%emt 0:04:36]} 20. e4 {[%emt 0:09:06]} Bh7 {[%emt 0:01:15]} 21. Kf2 {[%emt 0:02:05]} Nh5 {[%emt 0:08:05]} 22. Be3 {[%emt 0:00:53]} Bh4+ {[%emt 0:01:37]} 23. Kg1 {[%emt 0:00:38]} Bg3 24. Ng4 {[%emt 0:04:34]} Nf4 {[%emt 0:03:36]} 25. Nf1 {[%emt 0:00:53]} Nxe2+ {[%emt 0:01:12]} 26. Rxe2 {[%emt 0:00:08]} Nb3 {[%emt 0:00:53]} 27. Raa2 {[%emt 0:01:32]} Bd6 {[%emt 0:00:39]} 28. exd5 {[%emt 0:01:19]} exd5 {[%emt 0:00:32]} 29. Ne5 {[%emt 0:01:16]} Rxa4 {[%emt 0:03:17]} 30. Rxa4 {[%emt 0:00:51]} Rxa4 {[%emt 0:00:12]} 31. Nd7 {[%emt 0:00:35]} Bd3 {[%emt 0:01:50]} 32. Re1 {[%emt 0:02:37]} Bc7 {[%emt 0:03:24]} 33. Bf4 {[%emt 0:02:08]} Bxf4 {[%emt 0:09:21]} 34. Re8+ {[%emt 0:00:16]} Kh7 {[%emt 0:00:17]} 35. Nf8+ {[%emt 0:00:11]} Kg8 {[%emt 0:00:24]} 36. Nd7+ {[%emt 0:03:11]} Kh7 {[%emt 0:00:12]} 37. Nf8+ {[%emt 0:00:22]} 1/2-1/2

[Event "EYCC G10-ch 2024"]
[Site "Prague"]
[Date "2024.08.25"]
[Round "4.5"]
[White "Bakhshi, Rana"]
[Black "Vadkerti, Anna"]
[Result "1-0"]
[ECO "E71"]
[WhiteElo "1732"]
[BlackElo "1517"]
[Annotator "NA"]
[PlyCount "123"]
[EventDate "2024.08.19"]
[EventType "swiss"]
[EventCountry "CZE"]
[SourceTitle "playchess.com"]
[Source "ChessBase"]
[SourceQuality "1"]
[TimeControl "5400+30"]

1. d4 {[%emt 0:00:33]} Nf6 {[%emt 0:00:17]} 2. c4 {[%emt 0:00:35]} g6 {[%emt 0:00:09]} 3. Nc3 {[%emt 0:00:56]} Bg7 {[%emt 0:00:17]} 4. e4 {[%emt 0:00:42]} d6 {[%emt 0:00:13]} 5. h3 {[%emt 0:00:50]} O-O {[%emt 0:02:33]} 6. Be3 {[%emt 0:02:19]} e5 {[%emt 0:02:10]} 7. d5 {[%emt 0:01:14]} Nh5 {[%emt 0:05:42]} 8. g4 {[%emt 0:10:26]} Nf4 {[%emt 0:00:20]} 9. Nge2 {[%emt 0:01:18]} Re8 {[%emt 0:04:46]} 10. Qd2 {[%emt 0:04:16]} Qf6 {[%emt 0:14:04]} 11. O-O-O {[%emt 0:07:11]} Bh6 {[%emt 0:05:05]} 12. Kb1 {[%emt 0:04:21]} Nxe2 {[%emt 0:06:31]} 13. Bxh6 {[%emt 0:08:39]} Nxc3+ {[%emt 0:00:19]} 14. bxc3 {[%emt 0:00:36]} a5 {[%emt 0:04:09]} 15. Bd3 {[%emt 0:01:46]} a4 {[%emt 0:02:03]} 16. Rdg1 {[%emt 0:05:11]} a3 {[%emt 0:02:56]} 17. h4 {[%emt 0:04:18]} Ra6 18. Bc2 {[%emt 0:03:42]} Qf3 {[%emt 0:12:42]} 19. h5 {[%emt 0:12:24]} Rb6+ {[%emt 0:05:50]} 20. Bb3 {[%emt 0:04:22]} Qxe4+ {[%emt 0:01:40]} 21. Kc1 {[%emt 0:05:07]} Na6 {[%emt 0:03:03]} 22. hxg6 {[%emt 0:00:22]} fxg6 {[%emt 0:02:13]} 23. f3 {[%emt 0:03:50]} Qxf3 {[%emt 0:02:49]} 24. Rf1 {[%emt 0:00:23]} Qe4 {[%emt 0:01:18]} 25. Qf2 {[%emt 0:01:06]} Bf5 {[%emt 0:03:34]} 26. gxf5 {[%emt 0:00:14]} Nc5 {[%emt 0:00:49]} 27. Bc2 {[%emt 0:02:12]} Nd3+ {[%emt 0:01:48]} 28. Bxd3 {[%emt 0:01:48]} Qxd3 {[%emt 0:02:21]} 29. Qc2 {[%emt 0:01:17]} Qxc2+ {[%emt 0:00:50]} 30. Kxc2 {[%emt 0:01:00]} Rb2+ {[%emt 0:00:36]} 31. Kd3 {[%emt 0:00:34]} e4+ {[%emt 0:00:34]} 32. Ke3 {[%emt 0:00:30]} Rxa2 {[%emt 0:01:05]} 33. f6 {[%emt 0:00:31]} Kf7 {[%emt 0:00:59]} 34. Bg5 {[%emt 0:02:38]} h5 {[%emt 0:00:25]} 35. Rb1 {[%emt 0:04:16]} b6 {[%emt 0:00:36]} 36. Ra1 {[%emt 0:00:58]} Rxa1 {[%emt 0:00:34]} 37. Rxa1 {[%emt 0:00:03]} Ra8 {[%emt 0:00:15]} 38. Kxe4 {[%emt 0:00:10]} Ra4 {[%emt 0:00:55]} 39. Kd3 {[%emt 0:00:26]} b5 {[%emt 0:00:49]} 40. cxb5 {[%emt 0:00:47]} h4 {[%emt 0:00:09]} 41. c4 {[%emt 0:00:57]} h3 {[%emt 0:00:10]} 42. Bf4 {[%emt 0:00:23]} Kxf6 {[%emt 0:01:03]} 43. b6 {[%emt 0:01:12]} cxb6 {[%emt 0:00:18]} 44. Bxd6 {[%emt 0:00:09]} a2 {[%emt 0:00:14]} 45. Kc3 {[%emt 0:01:24]} Ra8 {[%emt 0:04:12]} 46. Kb3 {[%emt 0:01:20]} Rh8 {[%emt 0:00:24]} 47. Rxa2 {[%emt 0:00:17]} g5 {[%emt 0:00:11]} 48. Bh2 {[%emt 0:01:02]} Ke7 {[%emt 0:02:18]} 49. Ra7+ {[%emt 0:00:27]} Kf6 {[%emt 0:00:27]} 50. d6 {[%emt 0:00:14]} Ke6 {[%emt 0:00:57]} 51. Re7+ {[%emt 0:00:23]} Kf5 {[%emt 0:00:33]} 52. Kb4 {[%emt 0:01:25]} g4 {[%emt 0:00:14]} 53. Kb5 {[%emt 0:00:33]} Rg8 {[%emt 0:01:06]} 54. Re3 {[%emt 0:01:12]} Kg5 {[%emt 0:01:34]} 55. Kxb6 {[%emt 0:00:20]} Kh4 {[%emt 0:00:08]} 56. Bg3+ {[%emt 0:00:05]} Kg5 {[%emt 0:00:19]} 57. d7 {[%emt 0:00:20]} Rh8 {[%emt 0:01:58]} 58. Re8 {[%emt 0:00:30]} Rh6+ {[%emt 0:00:12]} 59. Kc7 {[%emt 0:00:00]} Rh7 {[%emt 0:00:00]} 60. Kc8 {[%emt 0:00:03]} h2 {[%emt 0:00:00]} 61. d8=Q+ {[%emt 0:00:15]} Kg6 {[%emt 0:00:00]} 62. Re6+ {[%emt 0:00:18]} 1-0

[Event "EYCC G10-ch 2024"]
[Site "Prague"]
[Date "2024.08.25"]
[Round "4.6"]
[White "Rzadkowska, Lila"]
[Black "Volani, Olga"]
[Result "1-0"]
[ECO "D31"]
[WhiteElo "1794"]
[BlackElo "1570"]
[Annotator "NA"]
[PlyCount "97"]
[EventDate "2024.08.19"]
[EventType "swiss"]
[EventCountry "CZE"]
[SourceTitle "playchess.com"]
[Source "ChessBase"]
[SourceQuality "1"]
[TimeControl "5400+30"]

1. d4 {[%emt 0:00:03]} e6 {[%emt 0:00:07]} 2. c4 {[%emt 0:00:14]} d5 {[%emt 0:00:08]} 3. Nc3 {[%emt 0:00:10]} Be7 {[%emt 0:00:16]} 4. Nf3 {[%emt 0:00:12]} Nf6 {[%emt 0:00:22]} 5. Bg5 {[%emt 0:00:17]} O-O {[%emt 0:00:37]} 6. cxd5 {[%emt 0:00:13]} exd5 {[%emt 0:00:16]} 7. e3 {[%emt 0:00:08]} c6 {[%emt 0:00:27]} 8. Bd3 {[%emt 0:00:10]} h6 {[%emt 0:00:48]} 9. Bf4 {[%emt 0:00:51]} Nbd7 {[%emt 0:01:37]} 10. Qc2 {[%emt 0:00:50]} Re8 {[%emt 0:01:16]} 11. h3 {[%emt 0:02:10]} Nf8 {[%emt 0:02:25]} 12. O-O {[%emt 0:00:32]} Be6 {[%emt 0:06:45]} 13. Rab1 {[%emt 0:09:34]} a5 {[%emt 0:01:56]} 14. Bh2 {[%emt 0:08:25]} Bd6 {[%emt 0:11:25]} 15. Ne5 {[%emt 0:03:14]} Qc7 {[%emt 0:03:43]} 16. f4 {[%emt 0:00:59]} Rac8 {[%emt 0:02:54]} 17. Rbc1 {[%emt 0:03:53]} Bd7 {[%emt 0:06:21]} 18. Qf2 {[%emt 0:02:50]} Qd8 {[%emt 0:04:08]} 19. Kh1 {[%emt 0:04:01]} Qe7 {[%emt 0:04:40]} 20. Na4 {[%emt 0:03:07]} Ne4 {[%emt 0:05:55]} 21. Bxe4 {[%emt 0:06:21]} dxe4 {[%emt 0:00:47]} 22. Nb6 {[%emt 0:01:16]} Rcd8 {[%emt 0:01:48]} 23. f5 {[%emt 0:07:30]} f6 {[%emt 0:05:11]} 24. Nec4 {[%emt 0:00:55]} Bxh2 {[%emt 0:01:28]} 25. Kxh2 {[%emt 0:00:11]} Bc8 {[%emt 0:01:55]} 26. Qg3 {[%emt 0:03:47]} a4 {[%emt 0:07:19]} 27. Nxc8 {[%emt 0:02:18]} Rxc8 {[%emt 0:00:01]} 28. Nd6 {[%emt 0:00:12]} Nd7 {[%emt 0:01:09]} 29. Nxe8 Qxe8 {[%emt 0:01:02]} 30. Rf4 {[%emt 0:04:54]} Qe7 {[%emt 0:01:17]} 31. Rh4 {[%emt 0:05:35]} Kh8 {[%emt 0:03:40]} 32. d5 {[%emt 0:00:48]} Ne5 {[%emt 0:00:58]} 33. Rxe4 {[%emt 0:00:55]} Qd7 {[%emt 0:00:55]} 34. dxc6 {[%emt 0:05:18]} Rxc6 {[%emt 0:01:45]} 35. Rxc6 {[%emt 0:01:59]} Qxc6 {[%emt 0:00:09]} 36. Rd4 {[%emt 0:01:16]} Kg8 {[%emt 0:03:07]} 37. e4 {[%emt 0:08:31]} Qc2 {[%emt 0:02:27]} 38. Rb4 {[%emt 0:03:44]} Qc6 {[%emt 0:03:23]} 39. a3 {[%emt 0:01:51]} b5 {[%emt 0:01:01]} 40. b3 {[%emt 0:02:57]} axb3 {[%emt 0:01:48]} 41. Qxb3+ {[%emt 0:01:17]} Kh8 {[%emt 0:00:54]} 42. Rxb5 {[%emt 0:00:51]} Nd7 {[%emt 0:01:43]} 43. Rd5 {[%emt 0:02:56]} Qc7+ {[%emt 0:01:39]} 44. Kh1 {[%emt 0:00:23]} Ne5 {[%emt 0:00:50]} 45. a4 {[%emt 0:00:43]} Qc1+ {[%emt 0:01:18]} 46. Rd1 {[%emt 0:00:07]} Qc7 {[%emt 0:00:18]} 47. Qd5 {[%emt 0:00:18]} Kh7 {[%emt 0:00:58]} 48. a5 {[%emt 0:01:49]} Nc6 {[%emt 0:03:11]} 49. Rc1 {[%emt 0:00:30]} 1-0

[Event "EYCC G10-ch 2024"]
[Site "Prague"]
[Date "2024.08.25"]
[Round "4.7"]
[White "Malcheva, Niya"]
[Black "Nguyen Doan, Bao Anh Angelina"]
[Result "0-1"]
[ECO "B24"]
[WhiteElo "1551"]
[BlackElo "1659"]
[Annotator "NA"]
[PlyCount "114"]
[EventDate "2024.08.19"]
[EventType "swiss"]
[EventCountry "CZE"]
[SourceTitle "playchess.com"]
[Source "ChessBase"]
[SourceQuality "1"]
[TimeControl "5400+30"]

1. e4 {[%emt 0:00:04]} c5 {[%emt 0:00:08]} 2. Nc3 {[%emt 0:00:08]} Nc6 {[%emt 0:00:12]} 3. Bb5 {[%emt 0:00:07]} Nd4 {[%emt 0:00:15]} 4. Nf3 {[%emt 0:00:06]} a6 {[%emt 0:00:20]} 5. Bd3 {[%emt 0:00:10]} g6 {[%emt 0:01:00]} 6. Nxd4 {[%emt 0:02:10]} cxd4 {[%emt 0:00:12]} 7. Ne2 {[%emt 0:00:05]} d5 {[%emt 0:01:07]} 8. c3 {[%emt 0:01:25]} dxc3 {[%emt 0:08:44]} 9. dxc3 {[%emt 0:00:12]} dxe4 {[%emt 0:01:14]} 10. Bxe4 {[%emt 0:00:31]} Qxd1+ {[%emt 0:00:47]} 11. Kxd1 {[%emt 0:00:07]} Nf6 {[%emt 0:01:07]} 12. Bf3 {[%emt 0:02:22]} Bg7 {[%emt 0:02:24]} 13. Bf4 {[%emt 0:02:48]} O-O {[%emt 0:03:00]} 14. h3 {[%emt 0:15:42]} Rd8+ {[%emt 0:03:52]} 15. Kc1 {[%emt 0:04:46]} Ne8 {[%emt 0:14:07]} 16. Rd1 {[%emt 0:07:06]} Rxd1+ {[%emt 0:06:14]} 17. Kxd1 {[%emt 0:01:14]} e5 {[%emt 0:00:54]} 18. Be3 {[%emt 0:04:16]} f5 {[%emt 0:08:39]} 19. Bd5+ {[%emt 0:01:28]} Kh8 {[%emt 0:00:18]} 20. Ke1 {[%emt 0:09:02]} Nf6 {[%emt 0:04:36]} 21. Bb3 {[%emt 0:08:03]} Bd7 {[%emt 0:07:15]} 22. Rd1 {[%emt 0:02:05]} Bc6 {[%emt 0:01:56]} 23. f3 {[%emt 0:00:53]} h6 {[%emt 0:06:08]} 24. h4 {[%emt 0:01:56]} Bf8 {[%emt 0:06:06]} 25. Kf2 {[%emt 0:08:31]} Kg7 {[%emt 0:02:25]} 26. Bb6 {[%emt 0:05:05]} Be7 {[%emt 0:01:55]} 27. Nc1 {[%emt 0:03:25]} Nd7 {[%emt 0:03:00]} 28. Bc7 {[%emt 0:04:22]} Bxh4+ {[%emt 0:01:28]} 29. g3 {[%emt 0:00:17]} Bf6 {[%emt 0:00:44]} 30. Be6 {[%emt 0:01:17]} Nc5 31. Bd5 {[%emt 0:00:36]} Rc8 {[%emt 0:07:49]} 32. Bd6 {[%emt 0:03:22]} Bxd5 {[%emt 0:01:53]} 33. Rxd5 {[%emt 0:00:48]} Nd7 {[%emt 0:01:01]} 34. Be7 {[%emt 0:05:28]} Rc7 {[%emt 0:02:22]} 35. Bxf6+ {[%emt 0:01:06]} Kxf6 {[%emt 0:00:19]} 36. Nd3 {[%emt 0:00:18]} Ke6 {[%emt 0:00:56]} 37. Nb4 {[%emt 0:02:18]} Rc5 {[%emt 0:01:49]} 38. Rd1 {[%emt 0:00:29]} a5 {[%emt 0:00:35]} 39. Nd3 Rd5 {[%emt 0:01:10]} 40. b4 {[%emt 0:01:06]} axb4 {[%emt 0:00:30]} 41. cxb4 {[%emt 0:00:07]} Rd4 {[%emt 0:00:26]} 42. a3 {[%emt 0:01:04]} Kf6 {[%emt 0:01:05]} 43. Ke3 {[%emt 0:00:48]} Rd6 {[%emt 0:00:45]} 44. a4 {[%emt 0:03:11]} Nb6 {[%emt 0:00:26]} 45. a5 {[%emt 0:00:26]} Nd5+ {[%emt 0:00:14]} 46. Kf2 {[%emt 0:00:39]} Nxb4 {[%emt 0:00:18]} 47. Ke2 {[%emt 0:00:10]} Nxd3 48. Rxd3 {[%emt 0:00:04]} Rxd3 {[%emt 0:00:21]} 49. Kxd3 {[%emt 0:00:04]} Ke6 {[%emt 0:00:16]} 50. Kc4 {[%emt 0:00:11]} g5 {[%emt 0:01:04]} 51. Kc5 {[%emt 0:00:10]} e4 {[%emt 0:00:26]} 52. fxe4 {[%emt 0:00:09]} fxe4 {[%emt 0:00:04]} 53. Kb6 {[%emt 0:00:17]} e3 {[%emt 0:00:05]} 54. Kxb7 {[%emt 0:00:04]} e2 {[%emt 0:00:04]} 55. a6 {[%emt 0:00:06]} e1=Q {[%emt 0:00:27]} 56. a7 {[%emt 0:00:04]} Qa1 {[%emt 0:00:11]} 57. g4 {[%emt 0:00:13]} Ke5 {[%emt 0:00:11]} 0-1

[Event "EYCC G10-ch 2024"]
[Site "Prague"]
[Date "2024.08.25"]
[Round "4.8"]
[White "Constantin-Ciuntu, Anne-Sophie"]
[Black "Jaksa, Ema"]
[Result "1-0"]
[ECO "C49"]
[WhiteElo "1641"]
[BlackElo "1551"]
[Annotator "NA"]
[PlyCount "43"]
[EventDate "2024.08.19"]
[EventType "swiss"]
[EventCountry "CZE"]
[SourceTitle "playchess.com"]
[Source "ChessBase"]
[SourceQuality "1"]
[TimeControl "5400+30"]

1. e4 {[%emt 0:00:03]} e5 {[%emt 0:00:27]} 2. Nf3 {[%emt 0:00:08]} Nc6 {[%emt 0:00:47]} 3. Nc3 {[%emt 0:00:07]} Nf6 {[%emt 0:01:13]} 4. Bb5 {[%emt 0:00:12]} Bb4 {[%emt 0:00:56]} 5. d3 {[%emt 0:00:26]} d6 {[%emt 0:01:57]} 6. Bg5 {[%emt 0:01:59]} O-O {[%emt 0:01:21]} 7. O-O {[%emt 0:01:38]} Bxc3 {[%emt 0:01:24]} 8. bxc3 {[%emt 0:00:10]} Qe7 {[%emt 0:01:30]} 9. Ba4 {[%emt 0:07:49]} Nd8 {[%emt 0:03:02]} 10. Rb1 {[%emt 0:14:38]} Ne6 {[%emt 0:02:41]} 11. Qd2 {[%emt 0:02:37]} h6 {[%emt 0:04:24]} 12. Be3 {[%emt 0:02:06]} Rb8 {[%emt 0:04:09]} 13. Nh4 {[%emt 0:05:04]} Nd8 {[%emt 0:07:52]} 14. g3 {[%emt 0:09:48]} d5 {[%emt 0:04:02]} 15. f3 {[%emt 0:04:57]} a6 {[%emt 0:06:39]} 16. Qf2 {[%emt 0:11:12]} b6 {[%emt 0:03:01]} 17. Bc5 {[%emt 0:01:30]} bxc5 {[%emt 0:05:12]} 18. Rxb8 {[%emt 0:00:08]} Bb7 {[%emt 0:01:09]} 19. Nf5 {[%emt 0:00:38]} Qe6 {[%emt 0:00:59]} 20. Rb1 {[%emt 0:00:40]} dxe4 {[%emt 0:02:11]} 21. Qxc5 {[%emt 0:02:51]} Qxa2 {[%emt 0:00:42]} 22. Qxf8+ {[%emt 0:00:21]} 1-0

[Event "EYCC G10-ch 2024"]
[Site "Prague"]
[Date "2024.08.25"]
[Round "4.9"]
[White "Anistoroaei, Maria"]
[Black "Goralik, Zuzanna"]
[Result "1-0"]
[ECO "D20"]
[WhiteElo "1627"]
[BlackElo "1459"]
[Annotator "NA"]
[PlyCount "79"]
[EventDate "2024.08.19"]
[EventType "swiss"]
[EventCountry "CZE"]
[SourceTitle "playchess.com"]
[Source "ChessBase"]
[SourceQuality "1"]
[TimeControl "5400+30"]

1. d4 {[%emt 0:00:03]} d5 {[%emt 0:00:17]} 2. c4 {[%emt 0:00:03]} dxc4 {[%emt 0:00:36]} 3. e3 {[%emt 0:00:04]} e5 {[%emt 0:00:30]} 4. Bxc4 {[%emt 0:11:17]} exd4 {[%emt 0:00:31]} 5. exd4 {[%emt 0:00:48]} Nf6 {[%emt 0:01:03]} 6. Nf3 {[%emt 0:01:52]} Be7 {[%emt 0:00:46]} 7. Qb3 {[%emt 0:11:45]} O-O {[%emt 0:11:22]} 8. Ng5 {[%emt 0:17:02]} Qe8 {[%emt 0:07:57]} 9. O-O {[%emt 0:02:24]} h6 {[%emt 0:01:07]} 10. Nf3 {[%emt 0:00:28]} Bd6 {[%emt 0:02:32]} 11. Re1 {[%emt 0:05:52]} Qd8 {[%emt 0:05:33]} 12. Ne5 {[%emt 0:06:56]} Bxe5 {[%emt 0:02:19]} 13. dxe5 {[%emt 0:00:13]} Qe7 {[%emt 0:11:46]} 14. Bd2 {[%emt 0:01:02]} Nh7 {[%emt 0:01:14]} 15. Nc3 {[%emt 0:06:23]} c6 {[%emt 0:02:34]} 16. Ne4 {[%emt 0:04:02]} b5 {[%emt 0:17:09]} 17. Bd3 {[%emt 0:08:17]} Be6 {[%emt 0:01:40]} 18. Qc2 {[%emt 0:01:53]} Rd8 {[%emt 0:03:58]} 19. Ba5 {[%emt 0:02:56]} Rd4 {[%emt 0:11:21]} 20. Nd6 {[%emt 0:08:28]} Nf8 {[%emt 0:00:55]} 21. Be4 {[%emt 0:02:51]} Qd7 {[%emt 0:03:45]} 22. Qc3 {[%emt 0:02:27]} Rxe4 {[%emt 0:04:37]} 23. Nxe4 {[%emt 0:01:08]} Bd5 {[%emt 0:00:58]} 24. Qg3 {[%emt 0:00:59]} Kh8 {[%emt 0:01:01]} 25. Rad1 {[%emt 0:01:56]} Qe6 {[%emt 0:02:56]} 26. b3 {[%emt 0:01:08]} Ng6 {[%emt 0:00:31]} 27. Nc5 {[%emt 0:00:42]} Qf5 {[%emt 0:00:44]} 28. e6 {[%emt 0:00:49]} fxe6 {[%emt 0:00:45]} 29. Re3 {[%emt 0:00:33]} Qc2 {[%emt 0:00:52]} 30. Rde1 {[%emt 0:00:19]} Nf8 {[%emt 0:01:56]} 31. Bc3 {[%emt 0:00:27]} Qh7 {[%emt 0:00:44]} 32. Qd6 {[%emt 0:00:24]} Qg8 {[%emt 0:01:25]} 33. Rg3 {[%emt 0:00:14]} Kh7 {[%emt 0:00:59]} 34. Rxg7+ {[%emt 0:00:39]} Qxg7 {[%emt 0:00:10]} 35. Bxg7 {[%emt 0:00:06]} Kxg7 {[%emt 0:00:08]} 36. Qe7+ {[%emt 0:00:20]} Kg8 {[%emt 0:00:28]} 37. Re3 {[%emt 0:00:17]} Ng6 {[%emt 0:00:20]} 38. Rg3 {[%emt 0:00:12]} h5 {[%emt 0:00:33]} 39. Rxg6+ {[%emt 0:00:05]} Kh8 {[%emt 0:00:12]} 40. Qg7# {[%emt 0:00:05]} 1-0